bitfinex-derivatives/quotes_BTCF0:USTF0_20260118
["timestamp","ask_amount","ask_price","bid_price","bid_amount"]
[1768767983478,0.09432,95467.0,95453.0,0.01048]
[1768767983781,0.09432,95467.0,95457.0,0.10443346]
[1768767984878,0.09432,95467.0,95450.0,0.13825011]
[1768767985080,0.09432,95467.0,95451.0,0.0383623]
[1768767985476,0.09432,95467.0,95451.0,0.0488423]
[1768767997992,0.18538992,95469.0,95451.0,0.0488423]
[1768768001596,0.18538992,95469.0,95451.0,0.01048]
[1768768001796,0.18538992,95469.0,95459.0,0.10443346]
[1768768002498,0.18538992,95469.0,95453.0,0.010479]
[1768768002888,0.30494503,95469.0,95453.0,0.010479]
[1768768006899,0.11955511,95468.0,95459.0,0.10443346]
[1768768011004,0.11955511,95468.0,95458.0,0.10443346]
[1768768026318,0.11955511,95468.0,95452.0,0.01048]
[1768768026505,0.11955511,95468.0,95458.0,0.10443346]
[1768768026915,0.11955511,95468.0,95452.0,0.01048]
[1768768027115,0.11955511,95468.0,95458.0,0.10443346]
[1768768030121,0.11955511,95468.0,95454.0,0.010479]
[1768768033725,0.11955511,95468.0,95456.0,0.010479]
[1768768035423,0.11955511,95468.0,95458.0,0.10443346]
[1768768037328,0.11955511,95468.0,95456.0,0.010479]
[1768768037533,0.11955511,95468.0,95458.0,0.10443346]
[1768768038633,0.11955511,95468.0,95456.0,0.010479]
[1768768039131,0.11955511,95468.0,95453.0,0.010479]
[1768768040033,0.11955511,95468.0,95455.0,0.010479]
[1768768050341,0.11955511,95468.0,95453.0,0.010479]
[1768768051050,0.11955511,95468.0,95455.0,0.010479]
[1768768051235,0.21307018,95468.0,95449.0,0.00230491]
[1768768051434,0.11765283,95466.0,95453.0,0.010479]
[1768768056044,0.11765283,95466.0,95455.0,0.010479]
[1768768056540,0.11765283,95466.0,95457.0,0.010479]
[1768768056744,0.09351507,95467.0,95457.0,0.010479]
[1768768057445,0.09351507,95467.0,95449.0,0.00230491]
[1768768058551,0.09351507,95467.0,95459.0,0.010479]
[1768768061248,0.09351507,95467.0,95449.0,0.00230491]
[1768768062148,0.09351507,95467.0,95455.0,0.010479]
[1768768063548,0.09351507,95467.0,95457.0,0.010479]
[1768768064455,0.20616853,95467.0,95457.0,0.010479]
[1768768065153,0.20616853,95467.0,95449.0,0.00230491]
[1768768065447,0.0911744,95465.0,95453.0,0.010479]
[1768768065649,0.20382786,95464.0,95449.0,0.00230491]
[1768768066054,0.11265346,95463.0,95449.0,0.00230491]
[1768768066450,0.11265346,95463.0,95453.0,0.010479]
[1768768066751,0.11265346,95463.0,95449.0,0.00230491]
[1768768066964,0.20382786,95463.0,95450.0,0.01048]
[1768768067267,0.11265346,95462.0,95452.0,0.01048]
[1768768067662,0.11265346,95462.0,95449.0,0.00230491]
[1768768068564,0.11265346,95462.0,95452.0,0.01048]
[1768768073367,0.11265346,95462.0,95454.0,0.010479]
[1768768077766,0.11265346,95462.0,95449.0,0.00230491]
[1768768078271,0.11265346,95462.0,95450.0,0.01048]
[1768768078463,0.11523047,95461.0,95450.0,0.01048]
[1768768079161,0.21173396,95461.0,95450.0,0.01048]
[1768768079357,0.11523047,95460.0,95450.0,0.01048]
[1768768080256,0.11523047,95457.0,95449.0,0.01048]
[1768768080456,0.0001571,95472.0,95448.0,0.02567468]
[1768768080857,0.0001571,95472.0,95449.0,0.1047636]
[1768768081463,0.010478,95468.0,95449.0,0.1152436]
[1768768081665,0.010478,95471.0,95451.0,0.01048]
[1768768082164,0.010478,95471.0,95448.0,0.02567468]
[1768768082552,0.21173396,95467.0,95449.0,0.10475537]
[1768768082754,0.11523047,95465.0,95449.0,0.10475537]
[1768768082956,0.11523047,95465.0,95453.0,0.010479]
[1768768084068,0.21173396,95465.0,95453.0,0.010479]
[1768768084268,0.11523047,95464.0,95453.0,0.010479]
[1768768085371,0.11523047,95464.0,95455.0,0.010479]
[1768768085575,0.11523047,95464.0,95452.0,0.01048]
[1768768086873,0.11523047,95464.0,95454.0,0.010479]
[1768768101690,0.21173396,95464.0,95447.0,0.09432]
[1768768101886,0.11523047,95463.0,95447.0,0.09432]
[1768768102086,0.11523047,95463.0,95448.0,0.10475701]
[1768768102889,0.11523047,95463.0,95454.0,0.010479]
[1768768104384,0.20812027,95463.0,95454.0,0.010479]
[1768768105389,0.11352384,95462.0,95454.0,0.010479]
[1768768109294,8.4e-07,95462.0,95456.0,0.010479]
[1768768109586,0.09432,95482.0,95468.0,0.010478]
[1768768109787,0.09432,95482.0,95470.0,0.10442472]
[1768768109788,0.0226267,95481.0,95470.0,0.10442472]
[1768768109991,0.09432,95482.0,95470.0,0.10442472]
[1768768110385,0.09432,95485.0,95470.0,0.11490272]
[1768768110586,0.01277994,95489.0,95470.0,0.11490272]
[1768768110787,0.010476,95486.0,95470.0,0.11490272]
[1768768111491,0.11352384,95483.0,95470.0,0.11490272]
[1768768111693,0.11352384,95483.0,95465.0,0.010478]
[1768768111890,0.11352384,95482.0,95470.0,0.10442472]
[1768768142323,0.12074547,95486.0,95470.0,0.10442472]
[1768768148643,0.11026947,95486.0,95470.0,0.10442472]
[1768768149542,0.01278005,95484.0,95466.0,0.09215638]
[1768768149746,0.01278005,95484.0,95470.0,0.10442472]
[1768768155253,0.01278005,95484.0,95470.0,0.1965811]
[1768768156844,0.00230405,95484.0,95470.0,0.1965811]
[1768768158946,0.00230405,95484.0,95470.0,0.2070591]
[1768768161147,0.00230405,95484.0,95471.0,0.09215638]
[1768768163545,0.010476,95483.0,95471.0,0.09215638]
[1768768167057,0.00230405,95484.0,95471.0,0.09215638]
[1768768167453,0.00230405,95484.0,95471.0,0.20609475]
[1768768167756,0.00230405,95484.0,95472.0,0.20949095]
[1768768168257,0.00230405,95484.0,95473.0,0.09555258]
[1768768168659,0.010476,95487.0,95474.0,0.11393837]
[1768768168860,0.00230394,95489.0,95477.0,0.20949095]
[1768768169160,0.00230394,95489.0,95481.0,0.20949095]
[1768768169553,0.00230394,95489.0,95482.0,0.09555258]
[1768768171562,0.00230394,95489.0,95482.0,0.10602858]
[1768768171763,0.00230394,95489.0,95482.0,0.21996695]
[1768768171962,0.00230394,95489.0,95483.0,0.09555258]
[1768768173466,0.104794,95499.0,95484.0,0.09555258]
[1768768174154,0.010475,95498.0,95484.0,0.09555258]
[1768768175263,0.09432,95499.0,95484.0,0.09555258]
[1768768179568,0.010475,95498.0,95484.0,0.09555258]
[1768768179875,0.09432,95499.0,95484.0,0.09555258]
[1768768180968,0.02237383,95498.0,95484.0,0.09555258]
[1768768181169,0.02237383,95497.0,95484.0,0.09555258]
[1768768181366,0.02237383,95496.0,95484.0,0.09555258]
[1768768181572,0.02237383,95495.0,95484.0,0.09555258]
[1768768181873,0.02237383,95494.0,95484.0,0.09555258]
[1768768182074,0.104795,95499.0,95484.0,0.09555258]
[1768768182265,0.02237301,95498.0,95484.0,0.09555258]
[1768768182467,0.02237301,95497.0,95484.0,0.09555258]
[1768768182773,0.02237301,95496.0,95484.0,0.09555258]
[1768768183074,0.02237301,95495.0,95484.0,0.09555258]
[1768768183267,0.104795,95499.0,95484.0,0.09555258]
[1768768183577,0.02231616,95498.0,95484.0,0.09555258]
[1768768183877,0.02231616,95497.0,95484.0,0.09555258]
[1768768184076,0.02231616,95496.0,95484.0,0.09555258]
[1768768184273,0.02231616,95495.0,95484.0,0.09555258]
[1768768184571,0.104795,95499.0,95484.0,0.09555258]
[1768768184763,0.02231577,95498.0,95484.0,0.09555258]
[1768768184965,0.02231577,95497.0,95484.0,0.09555258]
[1768768185164,0.02231577,95496.0,95484.0,0.09555258]
[1768768185465,0.02231577,95495.0,95484.0,0.09555258]
[1768768185664,0.104795,95499.0,95484.0,0.09555258]
[1768768185864,0.02231551,95498.0,95484.0,0.09555258]
[1768768186173,0.02231551,95497.0,95484.0,0.09555258]
[1768768186373,0.02231551,95496.0,95484.0,0.09555258]
[1768768186574,0.02231551,95495.0,95484.0,0.09555258]
[1768768186774,0.104795,95499.0,95484.0,0.09555258]
[1768768186963,0.02231538,95498.0,95484.0,0.09555258]
[1768768187162,0.02231538,95497.0,95484.0,0.09555258]
[1768768187372,0.02231538,95496.0,95484.0,0.09555258]
[1768768187569,0.02231538,95495.0,95484.0,0.09555258]
[1768768187877,0.104795,95499.0,95484.0,0.09555258]
[1768768188076,0.02231537,95498.0,95484.0,0.09555258]
[1768768188277,0.02231537,95497.0,95484.0,0.09555258]
[1768768188480,0.02231537,95496.0,95484.0,0.09555258]
[1768768188677,0.02231537,95495.0,95484.0,0.09555258]
[1768768188977,0.104795,95499.0,95484.0,0.09555258]
[1768768189175,0.02231548,95498.0,95484.0,0.09555258]
[1768768189368,0.02231548,95497.0,95484.0,0.09555258]
[1768768189569,0.02231548,95496.0,95484.0,0.09555258]
[1768768189771,0.02231548,95495.0,95484.0,0.09555258]
[1768768189972,0.104795,95499.0,95484.0,0.09555258]
[1768768190272,0.02231569,95498.0,95484.0,0.09555258]
[1768768190473,0.010475,95496.0,95484.0,0.09555258]
[1768768190672,0.02231569,95495.0,95484.0,0.09555258]
[1768768192673,0.010475,95496.0,95484.0,0.09555258]
[1768768192875,0.02231682,95495.0,95484.0,0.09555258]
[1768768193076,0.010475,95496.0,95484.0,0.09555258]
[1768768193384,0.02231682,95495.0,95484.0,0.09555258]
[1768768193676,0.010475,95496.0,95485.0,0.09269109]
[1768768193981,0.02231745,95495.0,95485.0,0.09269109]
[1768768194183,0.010475,95496.0,95485.0,0.09269109]
[1768768194389,0.02231745,95495.0,95485.0,0.09269109]
[1768768194685,0.104795,95499.0,95485.0,0.09269109]
[1768768194870,0.02231835,95498.0,95485.0,0.09269109]
[1768768195090,0.02231835,95497.0,95485.0,0.09269109]
[1768768195383,0.02231835,95496.0,95485.0,0.09269109]
[1768768195582,0.02231835,95495.0,95485.0,0.09269109]
[1768768195781,0.104795,95499.0,95485.0,0.09269109]
[1768768195983,0.02231947,95498.0,95485.0,0.09269109]
[1768768196182,0.02231947,95497.0,95485.0,0.09269109]
[1768768196480,0.02231947,95496.0,95485.0,0.09269109]
[1768768196682,0.02231947,95495.0,95485.0,0.09269109]
[1768768196879,0.104795,95499.0,95485.0,0.09269109]
[1768768197078,0.02232069,95498.0,95485.0,0.09269109]
[1768768197276,0.02232069,95497.0,95485.0,0.09269109]
[1768768197477,0.02232069,95496.0,95485.0,0.09269109]
[1768768197675,0.02232069,95495.0,95485.0,0.09269109]
[1768768197874,0.104795,95499.0,95485.0,0.09269109]
[1768768198072,0.02232191,95498.0,95485.0,0.09269109]
[1768768198273,0.02232191,95497.0,95485.0,0.09269109]
[1768768198572,0.02232191,95496.0,95485.0,0.09269109]
[1768768198770,0.02232191,95495.0,95485.0,0.09269109]
[1768768198983,0.104795,95499.0,95485.0,0.09269109]
[1768768199186,0.02232332,95498.0,95485.0,0.09269109]
[1768768199379,0.02232332,95497.0,95485.0,0.09269109]
[1768768199580,0.02232332,95496.0,95485.0,0.09269109]
[1768768199774,0.02232332,95495.0,95485.0,0.09269109]
[1768768199976,0.104795,95499.0,95485.0,0.09269109]
[1768768200178,0.02232431,95498.0,95485.0,0.09269109]
[1768768200482,0.02232431,95497.0,95486.0,0.09269109]
[1768768200684,0.02232431,95496.0,95487.0,0.09269109]
[1768768200885,0.02232431,95495.0,95487.0,0.09269109]
[1768768201185,0.09432,95499.0,95487.0,0.09269109]
[1768768201385,0.02232544,95498.0,95487.0,0.09269109]
[1768768201685,0.02232544,95497.0,95487.0,0.09269109]
[1768768201890,0.02232544,95496.0,95487.0,0.09269109]
[1768768202096,0.02232544,95495.0,95487.0,0.09269109]
[1768768202287,0.09432,95499.0,95487.0,0.09269109]
[1768768202489,0.02232793,95498.0,95487.0,0.09269109]
[1768768202690,0.02232793,95497.0,95487.0,0.09269109]
[1768768202982,0.02232793,95496.0,95487.0,0.09269109]
[1768768203193,0.02232793,95495.0,95487.0,0.09269109]
[1768768203485,0.010475,95498.0,95487.0,0.09269109]
[1768768203687,0.02233049,95497.0,95487.0,0.09269109]
[1768768203882,0.02233049,95496.0,95487.0,0.09269109]
[1768768204187,0.02233049,95495.0,95487.0,0.09269109]
[1768768204487,0.02233243,95494.0,95487.0,0.09269109]
[1768768204690,0.010475,95498.0,95487.0,0.09269109]
[1768768204982,0.02233244,95497.0,95487.0,0.09269109]
[1768768205291,0.02233244,95496.0,95487.0,0.09269109]
[1768768205490,0.02233244,95495.0,95487.0,0.09269109]
[1768768205678,0.02233244,95494.0,95487.0,0.09269109]
[1768768205878,0.09432,95499.0,95487.0,0.09269109]
[1768768206090,0.02233232,95498.0,95487.0,0.09269109]
[1768768206387,0.02233232,95497.0,95487.0,0.09269109]
[1768768206586,0.02233232,95496.0,95487.0,0.09269109]
[1768768206786,0.02233232,95495.0,95487.0,0.09269109]
[1768768206978,0.02233232,95494.0,95487.0,0.09269109]
[1768768207179,0.09432,95499.0,95487.0,0.09269109]
[1768768207389,0.02233218,95498.0,95487.0,0.09269109]
[1768768207578,0.02233218,95497.0,95487.0,0.09269109]
[1768768207779,0.02233218,95496.0,95487.0,0.09269109]
[1768768207980,0.02233218,95495.0,95487.0,0.09269109]
[1768768208180,0.02233218,95494.0,95487.0,0.09269109]
[1768768208484,0.09432,95499.0,95487.0,0.09269109]
[1768768208684,0.02233209,95498.0,95487.0,0.09269109]
[1768768208884,0.02233209,95497.0,95487.0,0.09269109]
[1768768209086,0.02233209,95496.0,95487.0,0.09269109]
[1768768209284,0.02233209,95495.0,95487.0,0.09269109]
[1768768209485,0.09432,95499.0,95487.0,0.09269109]
[1768768209685,0.02233202,95498.0,95487.0,0.09269109]
[1768768209983,0.03280702,95497.0,95487.0,0.09269109]
[1768768210184,0.02233202,95496.0,95487.0,0.09269109]
[1768768210384,0.02233202,95495.0,95487.0,0.09269109]
[1768768210586,0.010475,95497.0,95487.0,0.09269109]
[1768768210785,0.02233198,95496.0,95487.0,0.09269109]
[1768768210985,0.02233198,95495.0,95487.0,0.09269109]
[1768768211186,0.010475,95497.0,95487.0,0.09269109]
[1768768211387,0.02233194,95496.0,95487.0,0.09269109]
[1768768211690,0.02233194,95495.0,95487.0,0.09269109]
[1768768211891,0.010475,95497.0,95487.0,0.09269109]
[1768768212091,0.02233199,95496.0,95487.0,0.09269109]
[1768768212291,0.02233199,95495.0,95487.0,0.09269109]
[1768768212590,0.010475,95497.0,95487.0,0.09269109]
[1768768212792,0.02233204,95496.0,95487.0,0.09269109]
[1768768212993,0.02233204,95495.0,95487.0,0.09269109]
[1768768213189,0.010475,95497.0,95487.0,0.09269109]
[1768768213385,0.02228541,95496.0,95487.0,0.09269109]
[1768768213585,0.02228541,95495.0,95487.0,0.09269109]
[1768768213791,0.010475,95497.0,95487.0,0.09269109]
[1768768213985,0.02228549,95496.0,95487.0,0.09269109]
[1768768214186,0.03276049,95495.0,95487.0,0.09269109]
[1768768214388,0.02228562,95494.0,95487.0,0.09269109]
[1768768214586,0.010475,95498.0,95487.0,0.09269109]
[1768768214788,0.02228562,95497.0,95487.0,0.09269109]
[1768768215085,0.02228562,95496.0,95487.0,0.09269109]
[1768768215286,0.02228562,95495.0,95487.0,0.09269109]
[1768768215482,0.02228562,95494.0,95487.0,0.09269109]
[1768768215688,0.010475,95496.0,95487.0,0.09269109]
[1768768215886,0.010475,95496.0,95482.0,0.11667675]
[1768768215887,0.02228579,95495.0,95482.0,0.11667675]
[1768768216094,0.02228579,95494.0,95483.0,0.09269109]
[1768768216293,0.010475,95496.0,95483.0,0.09269109]
[1768768216493,0.02228604,95495.0,95483.0,0.09269109]
[1768768216695,0.02228604,95494.0,95483.0,0.09269109]
[1768768216900,0.010475,95496.0,95483.0,0.09269109]
[1768768217086,0.02228604,95495.0,95483.0,0.09269109]
[1768768217288,0.02228604,95494.0,95483.0,0.09269109]
[1768768217487,0.010475,95496.0,95483.0,0.09269109]
[1768768217689,0.02228632,95495.0,95483.0,0.09269109]
[1768768217892,0.02228632,95494.0,95483.0,0.09269109]
[1768768218193,0.117063,95498.0,95476.0,0.09269109]
[1768768218393,0.13934941,95497.0,95476.0,0.09269109]
[1768768218696,0.02228641,95496.0,95478.0,0.09269109]
[1768768219295,0.02228641,95495.0,95480.0,0.09269109]
[1768768219487,0.03276141,95494.0,95480.0,0.09269109]
[1768768219688,0.010475,95494.0,95480.0,0.09269109]
[1768768220094,0.010475,95494.0,95481.0,0.09269109]
[1768768223592,0.010475,95492.0,95481.0,0.09269109]
[1768768226900,0.10438375,95491.0,95481.0,0.09269109]
[1768768239517,0.11485875,95491.0,95481.0,0.09269109]
[1768768242816,0.010476,95489.0,95481.0,0.09269109]
[1768768243202,0.09432,95499.0,95481.0,0.09269109]
[1768768243408,0.10438375,95491.0,95481.0,0.09269109]
[1768768249420,0.010475,95490.0,95481.0,0.09269109]
[1768768251824,0.010476,95488.0,95481.0,0.09269109]
[1768768252819,0.10438375,95491.0,95476.0,0.11004731]
[1768768252820,0.010476,95484.0,95476.0,0.11004731]
[1768768253018,0.11119891,95485.0,95469.0,0.00230443]
[1768768253217,0.11119891,95478.0,95464.0,0.00230453]
[1768768253419,0.10438375,95474.0,95462.0,0.09432]
[1768768253615,0.10438375,95472.0,95458.0,0.10974995]
[1768768253818,0.10438375,95470.0,95458.0,0.10974995]
[1768768254018,0.010478,95472.0,95458.0,0.10974995]
[1768768254725,0.010478,95467.0,95449.0,0.00230491]
[1768768255322,0.10438375,95470.0,95450.0,0.30920349]
[1768768255323,0.11486175,95470.0,95450.0,0.30920349]
[1768768255528,0.11486175,95470.0,95451.0,0.20481974]
[1768768256932,0.010478,95467.0,95451.0,0.20481974]
[1768768258126,0.11486175,95470.0,95451.0,0.20481974]
[1768768258325,0.11486175,95470.0,95452.0,0.10974995]
[1768768258829,0.010478,95467.0,95452.0,0.10974995]
[1768768260828,0.10438375,95470.0,95452.0,0.10974995]
[1768768261036,0.010479,95458.0,95444.0,0.01664346]
[1768768264434,0.010479,95455.0,95444.0,0.01664346]
[1768768270832,0.010479,95457.0,95444.0,0.01664346]
[1768768271632,0.010479,95455.0,95444.0,0.01664346]
[1768768273642,0.10438375,95460.0,95444.0,0.01664346]
[1768768273643,0.010479,95458.0,95444.0,0.01664346]
[1768768273834,0.010479,95456.0,95444.0,0.01664346]
[1768768275742,0.010479,95459.0,95444.0,0.01664346]
[1768768277836,0.010479,95457.0,95444.0,0.01664346]
[1768768280243,0.20918275,95460.0,95444.0,0.01664346]
[1768768281435,0.104799,95460.0,95444.0,0.01664346]
[1768768281640,0.09432,95460.0,95447.0,0.01048]
[1768768281845,0.09432,95460.0,95450.0,0.20481974]
[1768768282552,0.19870375,95460.0,95446.0,0.11073851]
[1768768284049,0.09432,95460.0,95446.0,0.11073851]
[1768768284250,0.19870375,95460.0,95446.0,0.11073851]
[1768768284951,0.09432,95460.0,95446.0,0.11073851]
[1768768285147,0.19870375,95460.0,95446.0,0.11073851]
[1768768286845,0.09432,95460.0,95446.0,0.11073851]
[1768768287051,0.010479,95462.0,95446.0,0.11073851]
[1768768288052,0.010479,95462.0,95445.0,0.05650406]
[1768768289254,0.010479,95462.0,95446.0,0.05650406]
[1768768294258,0.09432,95463.0,95446.0,0.05650406]
[1768768296951,0.010479,95462.0,95446.0,0.05650406]
[1768768305566,0.010479,95462.0,95446.0,0.16922795]
[1768768306170,0.010479,95462.0,95447.0,0.05650406]
[1768768307174,0.010479,95460.0,95446.0,0.16922795]
[1768768307971,0.010479,95460.0,95446.0,0.11272389]
[1768768308865,0.010479,95460.0,95446.0,0.16922795]
[1768768309369,0.010479,95460.0,95446.0,0.11272389]
[1768768309871,0.104798,95463.0,95446.0,0.11272389]
[1768768310069,0.104798,95463.0,95446.0,0.16922795]
[1768768311971,0.010479,95461.0,95446.0,0.16922795]
[1768768314574,0.09432,95463.0,95446.0,0.16922795]
[1768768314773,0.09432,95463.0,95447.0,0.11899933]
[1768768315075,0.09432,95463.0,95447.0,0.21075018]
[1768768317174,0.09432,95463.0,95447.0,0.26725424]
[1768768318672,0.09432,95463.0,95447.0,0.21075018]
[1768768324076,0.010479,95462.0,95447.0,0.21075018]
[1768768324877,0.010479,95462.0,95447.0,0.18195018]
[1768768325479,0.09432,95463.0,95447.0,0.18195018]
[1768768325774,0.09432,95463.0,95447.0,0.23845424]
[1768768326468,0.010475,95491.0,95447.0,0.23845424]
[1768768326469,0.09432,95467.0,95451.0,0.09175085]
[1768768326669,0.010477,95475.0,95455.0,0.09175085]
[1768768326874,0.11631556,95474.0,95457.0,0.09175085]
[1768768327067,0.02199556,95473.0,95460.0,0.11899933]
[1768768327272,0.02199556,95472.0,95461.0,0.09175085]
[1768768327468,0.02199556,95471.0,95462.0,0.11899933]
[1768768327675,0.02199556,95470.0,95462.0,0.11899933]
[1768768327975,0.02199556,95469.0,95462.0,0.11899933]
[1768768328176,0.010477,95473.0,95462.0,0.11899933]
[1768768328377,0.02199403,95472.0,95462.0,0.11899933]
[1768768328579,0.02199403,95471.0,95462.0,0.11899933]
[1768768328763,0.02199403,95470.0,95462.0,0.11899933]
[1768768328964,0.09432,95474.0,95462.0,0.21075018]
[1768768329180,0.02199321,95473.0,95462.0,0.21075018]
[1768768329381,0.02199321,95472.0,95462.0,0.21075018]
[1768768329564,0.09432,95474.0,95462.0,0.21075018]
[1768768329565,0.02199321,95471.0,95462.0,0.21075018]
[1768768329769,0.02199321,95470.0,95462.0,0.21075018]
[1768768329970,0.010477,95472.0,95462.0,0.21075018]
[1768768330173,0.02199252,95471.0,95462.0,0.09175085]
[1768768330478,0.02199252,95470.0,95462.0,0.09175085]
[1768768330678,0.010477,95472.0,95462.0,0.09175085]
[1768768330879,0.02199199,95471.0,95462.0,0.09175085]
[1768768331072,0.02199199,95470.0,95462.0,0.09175085]
[1768768331271,0.010477,95472.0,95462.0,0.09175085]
[1768768331470,0.0219919,95471.0,95462.0,0.09175085]
[1768768331670,0.0219919,95470.0,95462.0,0.09175085]
[1768768331880,0.010477,95472.0,95462.0,0.09175085]
[1768768332082,0.02199159,95471.0,95462.0,0.09175085]
[1768768332380,0.02199159,95470.0,95462.0,0.09175085]
[1768768332579,0.010477,95472.0,95462.0,0.09175085]
[1768768332782,0.02199125,95471.0,95462.0,0.09175085]
[1768768332984,0.02199125,95470.0,95462.0,0.09175085]
[1768768333172,0.010477,95472.0,95462.0,0.09175085]
[1768768333373,0.02208302,95471.0,95462.0,0.09175085]
[1768768333674,0.02208302,95470.0,95462.0,0.09175085]
[1768768333869,0.010477,95472.0,95462.0,0.09175085]
[1768768334071,0.02208283,95471.0,95462.0,0.21075018]
[1768768334271,0.02208283,95470.0,95462.0,0.21075018]
[1768768334571,0.09432,95474.0,95462.0,0.21075018]
[1768768334772,0.02208239,95473.0,95462.0,0.21075018]
[1768768334983,0.02208239,95472.0,95462.0,0.21075018]
[1768768335182,0.02208239,95471.0,95462.0,0.21075018]
[1768768335371,0.010477,95473.0,95462.0,0.21075018]
[1768768335372,0.02208239,95470.0,95462.0,0.21075018]
[1768768335572,0.010477,95473.0,95462.0,0.21075018]
[1768768335783,0.02208198,95472.0,95462.0,0.21075018]
[1768768335980,0.02208198,95471.0,95462.0,0.21075018]
[1768768336282,0.02208198,95470.0,95462.0,0.21075018]
[1768768336481,0.010477,95473.0,95462.0,0.21075018]
[1768768336780,0.02208165,95472.0,95462.0,0.21075018]
[1768768336985,0.02208165,95471.0,95462.0,0.21075018]
[1768768337284,0.010477,95473.0,95462.0,0.21075018]
[1768768337582,0.02207974,95472.0,95462.0,0.21075018]
[1768768337783,0.010477,95473.0,95462.0,0.21075018]
[1768768337983,0.02207974,95472.0,95463.0,0.21075018]
[1768768338180,0.09432,95474.0,95463.0,0.21075018]
[1768768338483,0.02207973,95473.0,95463.0,0.21075018]
[1768768338682,0.02207973,95472.0,95463.0,0.21075018]
[1768768338886,0.09432,95474.0,95463.0,0.21075018]
[1768768339086,0.02207905,95473.0,95463.0,0.21075018]
[1768768339378,0.02207905,95472.0,95463.0,0.21075018]
[1768768339584,0.09432,95474.0,95463.0,0.21075018]
[1768768339783,0.02207849,95473.0,95463.0,0.21075018]
[1768768339981,0.02207849,95472.0,95463.0,0.21075018]
[1768768340180,0.010477,95477.0,95465.0,0.21075018]
[1768768340383,0.02207826,95476.0,95465.0,0.21075018]
[1768768340576,0.02207826,95475.0,95465.0,0.21075018]
[1768768340777,0.02207826,95474.0,95465.0,0.21075018]
[1768768340986,0.09432,95478.0,95465.0,0.21075018]
[1768768341286,0.09662394,95489.0,95474.0,0.09175085]
[1768768341489,0.09662394,95489.0,95476.0,0.09175085]
[1768768341788,0.09662394,95489.0,95479.0,0.11899933]
[1768768342381,0.010474,95501.0,95485.0,0.113124]
[1768768342584,0.010474,95501.0,95487.0,0.113124]
[1768768342585,0.09432,95500.0,95487.0,0.113124]
[1768768342786,0.010475,95499.0,95487.0,0.113124]
[1768768343282,0.010475,95496.0,95487.0,0.113124]
[1768768345190,0.104794,95500.0,95487.0,0.113124]
[1768768346390,0.010475,95497.0,95487.0,0.113124]
[1768768346592,0.104794,95500.0,95487.0,0.113124]
[1768768347591,0.010475,95497.0,95487.0,0.113124]
[1768768348681,0.09432,95500.0,95487.0,0.113124]
[1768768348876,0.19870137,95500.0,95487.0,0.113124]
[1768768349193,0.19870137,95500.0,95486.0,0.09328468]
[1768768354993,0.19870137,95500.0,95483.0,0.113124]
[1768768356196,0.010475,95499.0,95483.0,0.113124]
[1768768357798,0.010475,95497.0,95483.0,0.113124]
[1768768357991,0.10438137,95493.0,95483.0,0.113124]
[1768768359503,0.10438137,95493.0,95481.0,0.09328468]
[1768768359689,0.10438137,95491.0,95481.0,0.09328468]
[1768768363401,0.10438137,95491.0,95479.0,0.11375216]
[1768768371199,0.10438137,95491.0,95476.0,0.09515062]
[1768768371397,0.10438137,95491.0,95476.0,0.20771552]
[1768768372004,0.10438137,95491.0,95477.0,0.1125649]
[1768768380302,0.10438137,95491.0,95474.0,0.20490439]
[1768768380604,0.10438137,95491.0,95475.0,0.11058439]
[1768768383312,0.010475,95492.0,95462.0,0.05650406]
[1768768383313,0.12011402,95477.0,95462.0,0.05650406]
[1768768383514,0.12011402,95477.0,95457.0,0.010479]
[1768768383515,0.10438137,95474.0,95457.0,0.010479]
[1768768383810,0.10963702,95477.0,95457.0,0.010479]
[1768768384409,0.20614556,95477.0,95457.0,0.010479]
[1768768384614,0.20614556,95477.0,95457.0,0.12104317]
[1768768386916,0.010477,95476.0,95457.0,0.12104317]
[1768768387117,0.10438137,95474.0,95457.0,0.11056417]
[1768768387418,0.10438137,95470.0,95458.0,0.10474439]
[1768768387612,0.21401839,95470.0,95458.0,0.10474439]
[1768768387816,0.20614556,95468.0,95454.0,0.09432]
[1768768388018,0.20614556,95467.0,95454.0,0.09432]
[1768768388614,0.10438137,95464.0,95447.0,0.20582027]
[1768768388817,0.10438137,95460.0,95447.0,0.09432]
[1768768389015,0.10963702,95461.0,95447.0,0.09432]
[1768768389528,0.10438137,95460.0,95447.0,0.09432]
[1768768389914,0.10963702,95461.0,95447.0,0.09432]
[1768768391215,0.10438137,95460.0,95447.0,0.09432]
[1768768394418,0.21401839,95460.0,95447.0,0.09432]
[1768768394624,0.31052693,95460.0,95447.0,0.09432]
[1768768396220,0.31052693,95460.0,95447.0,0.06792491]
[1768768397122,0.010479,95459.0,95447.0,0.06792491]
[1768768397716,0.21662456,95459.0,95444.0,0.01664346]
[1768768401531,0.20614556,95457.0,95444.0,0.01664346]
[1768768401829,0.10438137,95454.0,95444.0,0.01664346]
[1768768402037,0.21662556,95452.0,95432.0,0.11865704]
[1768768402331,0.10438137,95450.0,95436.0,0.10476524]
[1768768402536,0.10438137,95450.0,95439.0,0.010481]
[1768768403035,0.09650854,95452.0,95439.0,0.010481]
[1768768404333,0.2102809,95457.0,95441.0,0.010481]
[1768768404522,0.10438137,95460.0,95443.0,0.010481]
[1768768407839,0.10438137,95460.0,95446.0,0.01048]
[1768768408133,0.09119947,95463.0,95450.0,0.10438137]
[1768768408334,0.09432,95462.0,95451.0,0.01048]
[1768768410737,0.11908143,95466.0,95451.0,0.01048]
[1768768411142,0.2102809,95466.0,95451.0,0.01048]
[1768768412142,0.11908143,95465.0,95451.0,0.01048]
[1768768412341,0.2102809,95465.0,95448.0,0.01048]
[1768768412538,0.12138596,95464.0,95448.0,0.01048]
[1768768413631,0.21258543,95464.0,95448.0,0.01048]
[1768768414347,0.010478,95463.0,95446.0,0.01048]
[1768768414645,0.2102809,95462.0,95446.0,0.01048]
[1768768417448,0.21359473,95461.0,95446.0,0.01048]
[1768768419041,0.11590287,95460.0,95446.0,0.01048]
[1768768419240,0.21359473,95460.0,95442.0,0.09432]
[1768768419439,0.11590287,95459.0,95442.0,0.09432]
[1768768420456,0.11590287,95459.0,95444.0,0.01048]
[1768768420754,0.21359473,95456.0,95442.0,0.09432]
[1768768421755,0.21359473,95452.0,95438.0,0.02128326]
[1768768421959,0.21359473,95445.0,95438.0,0.02128326]
[1768768422257,0.11590287,95448.0,95438.0,0.02128326]
[1768768425653,0.09769186,95450.0,95438.0,0.02128326]
[1768768426147,0.21359473,95450.0,95438.0,0.02128326]
[1768768426351,0.11590287,95449.0,95438.0,0.02128326]
[1768768427457,0.21359473,95449.0,95438.0,0.02128326]
[1768768431260,0.11590287,95448.0,95438.0,0.02128326]
[1768768431650,0.21359473,95448.0,95438.0,0.02128326]